bitfinex/quotes_BTCUSD_20230115
["timestamp","ask_amount","ask_price","bid_price","bid_amount"]
[1673807624026,0.12315439,20795.0,20794.0,0.3]
[1673807624292,0.00755439,20795.0,20793.0,1.480929]
[1673807624566,0.00755439,20795.0,20794.0,0.780907]
[1673807624851,0.00755439,20795.0,20794.0,0.895907]
[1673807625074,0.00755439,20795.0,20794.0,1.095907]
[1673807625324,0.00755439,20795.0,20794.0,0.895907]
[1673807625831,0.00755439,20795.0,20794.0,1.095907]
[1673807626083,0.00755439,20795.0,20794.0,0.901907]
[1673807626338,0.00755439,20795.0,20794.0,1.095907]
[1673807626601,0.00755439,20795.0,20794.0,0.987907]
[1673807626852,0.00755439,20795.0,20794.0,1.095907]
[1673807627111,0.00755439,20795.0,20794.0,1.187907]
[1673807627369,0.00755439,20795.0,20794.0,1.57996376]
[1673807627894,1.13403273,20800.0,20796.0,0.00075543]
[1673807628144,1.13403273,20800.0,20799.0,0.1149]
[1673807628398,1.13396613,20800.0,20799.0,1.557276]
[1673807628687,1.13396613,20800.0,20799.0,1.857276]
[1673807629687,1.13396613,20800.0,20799.0,1.900276]
[1673807629999,0.006332,20802.0,20800.0,0.2]
[1673807630237,0.006332,20802.0,20801.0,1.83920694]
[1673807630495,0.006332,20802.0,20801.0,3.37290694]
[1673807630754,0.006332,20802.0,20801.0,3.48850694]
[1673807631020,0.006332,20802.0,20801.0,12.48850694]
[1673807631825,0.006332,20802.0,20801.0,12.091538]
[1673807632092,0.006332,20802.0,20801.0,12.07733501]
[1673807632367,0.006332,20802.0,20801.0,12.16933501]
[1673807633182,0.006332,20802.0,20801.0,11.96173501]
[1673807633431,0.006332,20802.0,20801.0,12.05373501]
[1673807633977,0.006332,20802.0,20801.0,12.14573501]
[1673807634241,0.006332,20802.0,20801.0,10.91203501]
[1673807634766,0.006332,20802.0,20801.0,10.72803501]
[1673807635477,0.006332,20802.0,20801.0,10.33928901]
[1673807635990,0.006332,20802.0,20801.0,10.45388901]
[1673807636259,0.006332,20802.0,20801.0,10.85085795]
[1673807637064,0.00739004,20804.0,20802.0,0.2]
[1673807637316,0.00739004,20804.0,20803.0,1.557697]
[1673807637567,0.00739004,20804.0,20803.0,2.25466594]
[1673807637820,0.00739004,20804.0,20803.0,3.53276594]
[1673807638599,0.00739004,20804.0,20803.0,3.62476594]
[1673807638857,0.00739004,20804.0,20803.0,3.53276594]
[1673807639142,0.00739004,20804.0,20803.0,3.135797]
[1673807639431,0.00739004,20804.0,20803.0,3.227797]
[1673807639952,0.00739004,20804.0,20803.0,2.331498]
[1673807640495,0.00739004,20804.0,20803.0,2.331558]
[1673807640738,0.00739004,20804.0,20803.0,2.447158]
[1673807641000,0.00739004,20804.0,20803.0,2.84412694]
[1673807641531,0.00825987,20811.0,20804.0,0.01197005]
[1673807642013,0.19898582,20811.0,20808.0,0.1156]
[1673807642274,0.00825987,20811.0,20808.0,0.961145]
[1673807642777,0.00825987,20811.0,20809.0,0.3]
[1673807643032,0.00825987,20811.0,20809.0,0.780552]
[1673807644322,0.00825987,20811.0,20809.0,0.480552]
[1673807644591,0.00825987,20811.0,20810.0,0.3]
[1673807644842,0.00825987,20811.0,20808.0,0.480583]
[1673807645097,0.19898582,20811.0,20808.0,0.480583]
[1673807645350,0.00825987,20811.0,20807.0,0.480596]
[1673807645637,0.19898582,20811.0,20809.0,0.09306]
[1673807645880,0.00825987,20811.0,20809.0,6e-05]
[1673807646625,0.00825987,20811.0,20808.0,0.480643]
[1673807647152,0.1156,20809.0,20808.0,6e-05]
[1673807647399,0.436807,20809.0,20808.0,6e-05]
[1673807647660,0.64257778,20809.0,20808.0,6e-05]
[1673807647907,0.551507,20809.0,20808.0,6e-05]
[1673807648217,1.151507,20809.0,20808.0,0.09106]
[1673807648419,1.151507,20809.0,20808.0,6e-05]
[1673807648667,1.72870869,20809.0,20808.0,6e-05]
[1673807648926,3.377e-05,20807.0,20804.0,0.00467009]
[1673807649169,0.1155,20805.0,20804.0,0.00467009]
[1673807649420,0.436707,20805.0,20804.0,0.00467009]
[1673807649668,0.436707,20805.0,20802.0,2.0]
[1673807649669,0.2311,20805.0,20802.0,2.0]
[1673807649928,0.1145,20803.0,20800.0,0.480764]
[1673807650179,0.30522595,20803.0,20800.0,0.480764]
[1673807651173,0.1145,20803.0,20800.0,0.480764]
[1673807651423,0.1145,20803.0,20800.0,0.571764]
[1673807651678,0.1145,20803.0,20799.0,0.480779]
[1673807651923,0.1156,20805.0,20800.0,0.571766]
[1673807652425,0.595188,20808.0,20800.0,1.480766]
[1673807652426,0.1289,20806.0,20800.0,1.480766]
[1673807652676,0.19072595,20806.0,20801.0,0.5]
[1673807652935,0.1294,20808.0,20803.0,0.961394]
[1673807653960,0.32012595,20808.0,20803.0,0.961394]
[1673807654204,0.32012595,20808.0,20804.0,0.3]
[1673807654453,0.1292,20807.0,20804.0,0.780668]
[1673807654707,1.0625,20809.0,20804.0,0.780668]
[1673807655223,1.25322595,20809.0,20804.0,0.780668]
[1673807655486,1.25322595,20809.0,20804.0,0.824668]
[1673807655487,0.1281,20809.0,20804.0,0.824668]
[1673807655769,0.31882595,20809.0,20804.0,0.824668]
[1673807656495,0.31882595,20809.0,20804.0,0.780668]
[1673807657283,0.31882595,20809.0,20804.0,0.824668]
[1673807657548,0.31882595,20809.0,20804.0,0.871668]
[1673807657811,0.31882595,20809.0,20804.0,0.780668]
[1673807658054,0.43260633,20809.0,20804.0,0.524668]
[1673807658354,0.43260633,20809.0,20804.0,0.480668]
[1673807658628,0.321207,20808.0,20804.0,0.480668]
[1673807658900,0.19072595,20808.0,20804.0,0.480668]
[1673807659385,0.329,20810.0,20804.0,0.571668]
[1673807659635,0.80026495,20810.0,20804.0,0.480668]
[1673807659892,0.1294,20809.0,20804.0,0.524668]
[1673807660119,0.321207,20808.0,20804.0,0.480668]
[1673807660367,0.19072595,20808.0,20804.0,0.571668]
[1673807660624,0.19072595,20808.0,20804.0,0.480668]
[1673807660848,0.19072595,20808.0,20804.0,0.524668]
[1673807661097,0.1294,20809.0,20804.0,0.480668]
[1673807661353,0.32012595,20809.0,20804.0,0.571668]
[1673807662079,0.321207,20808.0,20804.0,0.480668]
[1673807662329,0.19072595,20808.0,20804.0,0.524668]
[1673807662599,0.1294,20809.0,20804.0,0.524668]
[1673807662853,0.32012595,20809.0,20804.0,0.480668]
[1673807663651,0.32012595,20809.0,20804.0,0.524668]
[1673807665542,0.32012595,20809.0,20805.0,0.3]
[1673807665801,0.1294,20809.0,20805.0,0.780637]
[1673807666630,0.32012595,20809.0,20805.0,0.480637]
[1673807667134,0.321207,20808.0,20805.0,0.480637]
[1673807667435,0.20639,20807.0,20805.0,0.480637]
[1673807667715,0.48349614,20809.0,20804.0,0.480668]
[1673807667970,0.67422209,20809.0,20804.0,0.480668]
[1673807668236,0.19072595,20808.0,20802.0,0.62427917]
[1673807668501,0.1293,20804.0,20801.0,1.1967]
[1673807668765,0.39711595,20803.0,20800.0,0.480747]
[1673807669038,0.51193295,20802.0,20800.0,0.480747]
[1673807669302,0.19072595,20802.0,20800.0,0.480747]
[1673807669581,0.19072595,20802.0,20799.0,0.480776]
[1673807670404,0.1293,20804.0,20799.0,0.480776]
[1673807670665,0.32002595,20804.0,20799.0,0.480776]
[1673807670928,0.83270514,20807.0,20799.0,0.83967142]
[1673807671183,0.83270514,20807.0,20800.0,0.44355817]
[1673807671184,0.82426741,20807.0,20800.0,0.44355817]
[1673807671512,0.81226741,20807.0,20801.0,0.480731]
[1673807671781,0.002,20804.0,20802.0,0.3]
[1673807672047,0.14093246,20807.0,20802.0,0.780706]
[1673807672304,0.002,20807.0,20802.0,0.780706]
[1673807672558,0.35209614,20808.0,20802.0,0.780706]
[1673807672809,0.54282209,20808.0,20802.0,2.044806]
[1673807673064,0.002,20807.0,20802.0,2.04470588]
[1673807673324,0.19072595,20807.0,20802.0,2.04470588]
[1673807673594,0.19072595,20807.0,20803.0,0.2]
[1673807673852,0.96107314,20809.0,20803.0,1.161373]
[1673807674350,0.1293,20808.0,20803.0,0.961373]
[1673807674366,0.002,20807.0,20803.0,0.961373]
[1673807674601,0.19272595,20807.0,20804.0,0.3]
[1673807674856,0.35209614,20809.0,20804.0,0.480676]
[1673807675107,0.14093246,20809.0,20804.0,0.480676]
[1673807675373,0.33365841,20809.0,20804.0,0.480676]
[1673807675653,0.54282209,20809.0,20804.0,0.480676]
[1673807675890,0.14093246,20808.0,20804.0,0.480676]
[1673807676142,0.33165841,20808.0,20804.0,0.480676]
[1673807676398,0.33165841,20808.0,20804.0,0.539676]
[1673807676694,0.14093246,20808.0,20804.0,0.539676]
[1673807677196,0.14093246,20809.0,20804.0,0.480676]
[1673807677452,0.002,20808.0,20804.0,0.539676]
[1673807678006,0.00825987,20811.0,20805.0,0.57245817]
[1673807678537,0.002,20809.0,20806.0,1.35819294]
[1673807678818,0.55108196,20811.0,20806.0,0.961224]
[1673807679393,0.55108196,20811.0,20804.0,0.62423417]
[1673807679394,0.129,20809.0,20804.0,0.480654]
[1673807679645,0.51193295,20808.0,20804.0,0.480654]
[1673807679916,0.64133295,20807.0,20802.0,0.14355817]
[1673807680171,0.64133295,20807.0,20798.0,0.64118915]
[1673807680172,0.1294,20805.0,20799.0,0.83967242]
[1673807680430,0.64133295,20804.0,20799.0,0.480777]
[1673807680734,0.19072595,20803.0,20799.0,0.62433517]
[1673807681002,0.19072595,20802.0,20799.0,0.62433517]
[1673807681763,0.1294,20804.0,20799.0,0.92867242]
[1673807682203,0.1294,20804.0,20799.0,0.83967242]
[1673807682207,0.32012595,20804.0,20800.0,0.14355817]
[1673807682475,0.1294,20804.0,20800.0,0.14355817]
[1673807682732,0.1294,20804.0,20800.0,0.3]
[1673807682986,0.1294,20805.0,20800.0,0.92431617]
[1673807683489,0.32012595,20805.0,20800.0,1.13965342]
[1673807684002,0.32012595,20805.0,20801.0,0.14355817]
[1673807684264,1.090682,20806.0,20801.0,0.44355817]
[1673807684520,1.28140795,20806.0,20801.0,0.44355817]
[1673807685297,0.321207,20805.0,20801.0,0.44355817]
[1673807685550,0.19072595,20805.0,20801.0,0.44355817]
[1673807685824,0.19072595,20805.0,20800.0,1.32042042]
[1673807686321,0.19072595,20805.0,20801.0,0.44355817]
[1673807686575,0.610031,20806.0,20801.0,0.92429917]
[1673807686832,0.80075695,20806.0,20801.0,0.92429917]
[1673807687190,0.80075695,20806.0,20801.0,1.13963642]
[1673807687345,0.1294,20806.0,20801.0,1.13963642]
[1673807687611,0.19072595,20806.0,20802.0,0.14355817]
[1673807687883,1.69003446,20808.0,20802.0,1.10498417]
[1673807688112,1.88076041,20808.0,20802.0,1.10498417]
[1673807688388,1.88076041,20808.0,20803.0,0.3]
[1673807688641,0.75093446,20808.0,20803.0,0.3]
[1673807688919,0.33165841,20808.0,20803.0,0.780695]
[1673807689194,0.96096314,20809.0,20803.0,0.92425317]
[1673807689457,0.26923246,20809.0,20803.0,1.32122211]
[1673807689748,0.19072595,20809.0,20804.0,0.14355817]
[1673807690004,0.96977601,20811.0,20804.0,0.57767837]
[1673807690276,0.96977601,20811.0,20805.0,0.780648]
[1673807690277,0.14093246,20810.0,20805.0,0.780648]
[1673807690551,0.33991828,20811.0,20805.0,0.92420617]
[1673807690808,0.33991828,20811.0,20805.0,1.32117511]
[1673807691599,0.19898582,20811.0,20805.0,1.53651236]
[1673807691856,0.19072595,20810.0,20805.0,1.53651236]
[1673807692111,0.19072595,20810.0,20805.0,0.92420617]
[1673807692596,0.33165841,20810.0,20805.0,0.780648]
[1673807693104,0.19072595,20809.0,20805.0,0.092]
[1673807693364,0.1283,20807.0,20802.0,2.11180242]
[1673807693683,0.64093295,20806.0,20805.0,0.092]
[1673807693900,0.129,20806.0,20805.0,0.092]
[1673807694135,0.129,20806.0,20802.0,1.89646517]
[1673807694392,0.31972595,20806.0,20802.0,1.752907]
[1673807695940,0.129,20806.0,20802.0,1.752907]
[1673807696194,0.129,20806.0,20802.0,1.845907]
[1673807697243,0.31972595,20806.0,20802.0,1.845907]
[1673807697545,0.129,20806.0,20802.0,1.845907]
[1673807698088,0.1289074,20806.0,20802.0,1.845907]
[1673807698621,1.92584914,20810.0,20803.0,0.65889542]
[1673807698874,1.92584914,20810.0,20804.0,0.87763194]
[1673807699143,0.96094914,20810.0,20805.0,0.3]
[1673807699399,0.26923246,20810.0,20805.0,0.780638]
[1673807699903,0.35209614,20811.0,20805.0,0.780638]
[1673807700201,0.54282209,20811.0,20805.0,0.780638]
[1673807700422,0.54282209,20811.0,20805.0,0.873638]
[1673807700926,0.33165841,20810.0,20805.0,0.666638]
[1673807701182,0.54282209,20810.0,20805.0,0.666638]
[1673807701471,0.33165841,20810.0,20805.0,0.666451]
[1673807701734,0.33165841,20810.0,20805.0,0.480451]
[1673807701968,0.33165841,20810.0,20805.0,0.573451]
[1673807702225,0.1283,20808.0,20803.0,0.48068]
[1673807702485,0.51193295,20807.0,20805.0,0.093]
[1673807702807,0.1283,20808.0,20805.0,0.093]
[1673807703267,0.1283,20808.0,20803.0,0.961379]
[1673807703534,0.31902595,20808.0,20803.0,1.053379]
[1673807703782,0.31902595,20808.0,20803.0,0.961379]
[1673807705060,0.31902595,20808.0,20805.0,0.093]
[1673807705362,0.1283,20808.0,20803.0,0.961379]
[1673807705603,0.31902595,20808.0,20803.0,0.961379]
[1673807705864,0.31902595,20808.0,20803.0,1.053379]
[1673807706124,0.31902595,20808.0,20803.0,0.961379]
[1673807706382,0.31902595,20808.0,20805.0,0.093]
[1673807706682,0.1283,20808.0,20805.0,0.093]
[1673807707720,0.1283,20808.0,20804.0,0.3]
[1673807708002,0.31902595,20808.0,20803.0,0.961358]
[1673807708250,0.31902595,20808.0,20803.0,0.480679]
[1673807708499,0.31902595,20808.0,20805.0,0.093]
[1673807708750,0.1294,20809.0,20805.0,0.093]
[1673807709006,0.1294,20809.0,20805.0,0.48065]
[1673807709287,0.1294,20809.0,20806.0,0.3]
[1673807710042,0.1294,20809.0,20805.0,0.57365]
[1673807710591,0.1294,20809.0,20805.0,0.48065]
[1673807710816,0.1294,20809.0,20806.0,0.343]
[1673807711077,0.1294,20809.0,20806.0,0.3]
[1673807711338,0.35209614,20812.0,20806.0,0.92417417]
[1673807711598,1.64255243,20813.0,20808.0,0.14355817]
[1673807711599,1.14921562,20813.0,20808.0,0.14355817]
[1673807711856,1.00828316,20813.0,20809.0,1.35807394]
[1673807712110,1.00828316,20813.0,20810.0,0.3]
[1673807712636,1.00828316,20813.0,20810.0,0.780528]
[1673807713237,1.00828316,20813.0,20810.0,0.480528]
[1673807713445,1.00828316,20813.0,20811.0,0.3]
[1673807713695,0.99989173,20813.0,20811.0,0.3]
[1673807713973,0.99989173,20813.0,20810.0,1.054065]
[1673807714238,0.99989173,20813.0,20811.0,0.3]
[1673807715037,0.99989173,20813.0,20811.0,0.78051]
[1673807715295,0.99989173,20813.0,20810.0,0.480515]
[1673807715550,0.99989173,20813.0,20811.0,0.093]
[1673807716314,0.99989173,20813.0,20811.0,0.57351]
[1673807716564,0.99989173,20813.0,20811.0,0.48051]
[1673807717369,0.99989173,20813.0,20811.0,0.57351]
[1673807717588,0.99989173,20813.0,20811.0,0.48051]
[1673807717840,0.99989173,20813.0,20811.0,0.57351]
[1673807720198,0.99989173,20813.0,20812.0,0.3]
[1673807720449,0.99989173,20813.0,20812.0,0.780492]
[1673807721275,0.99989173,20813.0,20812.0,0.823492]
[1673807722042,0.99989173,20813.0,20812.0,0.780492]
[1673807723076,0.99978562,20813.0,20812.0,0.872492]
[1673807723328,0.99978562,20813.0,20812.0,0.480492]
[1673807723634,0.99978562,20813.0,20812.0,0.572492]
[1673807724132,0.99978562,20813.0,20812.0,0.964492]
[1673807724916,0.99978562,20813.0,20812.0,0.480492]
[1673807725164,0.99978562,20813.0,20812.0,0.572492]
[1673807725394,0.99978562,20813.0,20812.0,0.872492]
[1673807725910,0.99978562,20813.0,20812.0,0.780492]
[1673807726246,0.99978562,20813.0,20812.0,0.872492]
[1673807727917,0.99978562,20813.0,20812.0,0.780492]
[1673807728758,0.00944323,20815.0,20812.0,0.780492]
[1673807728975,0.00944323,20815.0,20813.0,1.38254026]
[1673807729211,0.00944323,20815.0,20814.0,3.07476372]
[1673807729463,0.00944323,20815.0,20814.0,8.37476372]
[1673807729980,0.00965357,20819.0,20814.0,9.66432358]
[1673807730243,0.00955097,20820.0,20818.0,0.2308]
[1673807730484,0.00420454,20822.0,20819.0,2.34191872]
[1673807730736,0.00420454,20822.0,20819.0,2.14191872]
[1673807731000,0.00420454,20822.0,20819.0,1.74099]
[1673807731484,0.00420454,20822.0,20819.0,2.14191872]
[1673807731999,0.31033049,20822.0,20819.0,0.96066]
[1673807732265,0.19072595,20821.0,20815.0,0.48740326]
[1673807732604,0.19072595,20820.0,20819.0,0.092]
[1673807732806,0.2,20820.0,20815.0,0.48740326]
[1673807733069,0.1154,20817.0,20815.0,0.00699526]
[1673807733320,0.30542595,20816.0,20815.0,0.00699526]
[1673807733586,0.62163295,20816.0,20815.0,0.00699526]
[1673807734047,0.1097,20816.0,20815.0,0.00699526]
[1673807734297,0.430907,20816.0,20815.0,0.09899526]
[1673807734567,0.89232764,20816.0,20813.0,0.48161154]
[1673807734834,0.6693,20814.0,20813.0,0.47661154]
[1673807735090,1.032552,20814.0,20813.0,0.47661154]
[1673807736141,0.552107,20814.0,20813.0,0.48461154]
[1673807736443,0.552107,20814.0,20813.0,0.47661154]
[1673807736729,0.552107,20814.0,20813.0,0.48461154]
[1673807737234,0.2309,20814.0,20813.0,0.48461154]
[1673807737491,0.552107,20814.0,20813.0,0.47661154]
[1673807738019,0.2309,20814.0,20813.0,0.47661154]
[1673807738280,0.1155,20814.0,20813.0,0.48261154]
[1673807738791,0.1155,20814.0,20813.0,0.47661154]
[1673807739536,0.1154,20816.0,20813.0,0.47661154]
[1673807739796,0.1154,20817.0,20813.0,0.47661154]
[1673807740825,0.30612595,20817.0,20813.0,0.47661154]
[1673807741069,0.30612595,20817.0,20813.0,0.56861154]
[1673807741329,0.30612595,20817.0,20813.0,0.47661154]
[1673807741622,0.1154,20817.0,20813.0,0.51961154]
[1673807742606,0.1154,20817.0,20813.0,1.00007854]
[1673807743128,0.1154,20817.0,20813.0,0.95707854]
[1673807743374,0.1154,20817.0,20813.0,1.05007854]
[1673807743633,0.1153,20818.0,20813.0,0.95707854]
[1673807743901,0.30602595,20818.0,20813.0,1.04907854]
[1673807744535,0.30602595,20818.0,20813.0,0.95707854]
[1673807744752,0.30602595,20818.0,20813.0,0.95805854]
[1673807744982,0.30602595,20818.0,20813.0,1.05105854]
[1673807745455,0.1153,20818.0,20813.0,1.05105854]
[1673807745646,0.1153,20818.0,20814.0,0.3]
[1673807745865,0.595715,20820.0,20814.0,1.260869]
[1673807746079,0.78644095,20820.0,20814.0,1.260869]
[1673807746300,0.30612595,20820.0,20814.0,1.260869]
[1673807746761,0.30612595,20820.0,20814.0,2.600769]
[1673807746969,0.30612595,20820.0,20814.0,2.508769]
[1673807747398,0.19072595,20819.0,20814.0,2.300769]
[1673807747648,0.1154,20817.0,20814.0,0.092]
[1673807747918,0.321207,20816.0,20814.0,0.092]
[1673807748160,0.20639,20815.0,20813.0,0.47759154]
[1673807748415,0.19072595,20815.0,20813.0,0.47759154]
[1673807748661,0.1154,20817.0,20813.0,0.47759154]
[1673807748913,0.19072595,20816.0,20813.0,0.47759154]
[1673807749172,0.321207,20816.0,20813.0,0.47759154]
[1673807749421,0.32179,20815.0,20813.0,0.47759154]
[1673807749669,0.321207,20814.0,20813.0,0.56959154]
[1673807749921,0.1154,20815.0,20813.0,0.56959154]
[1673807750184,0.14093246,20819.0,20813.0,1.14204954]
[1673807750445,0.49372431,20821.0,20815.0,0.960817]
[1673807750446,0.01341731,20821.0,20815.0,0.960817]
[1673807750697,0.01341731,20821.0,20816.0,0.3]
[1673807750954,0.01341731,20821.0,20816.0,0.480395]
[1673807751207,0.15434977,20821.0,20816.0,0.480395]
[1673807751706,0.20414326,20821.0,20816.0,0.480395]
[1673807752226,0.34507572,20821.0,20816.0,0.480395]
[1673807752490,0.34507572,20821.0,20816.0,0.092]
[1673807752491,0.1154,20818.0,20816.0,0.092]
[1673807752748,1.031983,20817.0,20816.0,0.092]
[1673807753278,1.031983,20817.0,20813.0,0.47759154]
[1673807753518,0.19072595,20816.0,20813.0,0.47759154]
[1673807753765,0.30612595,20816.0,20813.0,0.47759154]
[1673807754266,0.36059614,20820.0,20813.0,0.47759154]
[1673807754520,1.12798458,20821.0,20813.0,1.07295154]
[1673807754521,0.96051145,20821.0,20813.0,1.07295154]
[1673807754769,0.45977572,20821.0,20816.0,0.487395]
[1673807755043,0.45977572,20821.0,20816.0,0.480395]
[1673807755044,0.01341731,20821.0,20816.0,0.480395]
[1673807755292,0.01341731,20821.0,20817.0,0.3]
[1673807755554,0.01341731,20821.0,20817.0,0.29990982]
[1673807755835,0.01341731,20821.0,20817.0,0.78027782]
[1673807756096,0.01341731,20821.0,20817.0,1.15202765]
[1673807756347,0.01341731,20821.0,20817.0,0.78027782]
[1673807756595,0.01341731,20821.0,20817.0,1.24487715]
[1673807757380,0.01341731,20821.0,20818.0,0.3149]
[1673807757640,0.01341731,20821.0,20819.0,0.96066]
[1673807757888,0.06910493,20825.0,20819.0,1.26066]
[1673807758190,0.1154,20824.0,20819.0,0.96066]
[1673807758428,0.30612595,20824.0,20819.0,0.96066]
[1673807758671,0.51728963,20824.0,20819.0,0.48033]
[1673807758926,0.51728963,20824.0,20819.0,0.57233]
[1673807759179,0.1147,20822.0,20818.0,0.48035]
[1673807759434,0.30542595,20822.0,20819.0,0.092]
[1673807759691,0.1147,20822.0,20818.0,0.48035]
[1673807760205,0.1147,20822.0,20819.0,0.3]
[1673807760452,0.1154,20824.0,20820.0,0.480304]
[1673807761208,0.1104,20824.0,20820.0,0.480304]
[1673807761713,0.1104,20824.0,20820.0,0.523304]
[1673807761962,0.30112595,20824.0,20820.0,0.480304]
[1673807762218,0.30112595,20824.0,20820.0,0.572304]
[1673807762474,0.1104,20824.0,20820.0,0.480304]
[1673807762746,0.1104,20824.0,20820.0,0.573304]
[1673807763322,0.1104,20824.0,20820.0,0.813304]
[1673807763561,1.08834018,20826.0,20820.0,0.720304]
[1673807763784,0.1146,20825.0,20820.0,0.812304]
[1673807764047,0.30532595,20825.0,20820.0,0.812304]
[1673807764306,0.30532595,20825.0,20820.0,2.099304]
[1673807764555,0.30532595,20825.0,20820.0,2.007304]
[1673807764556,0.51648963,20825.0,20820.0,2.007304]
[1673807764765,0.30532595,20825.0,20820.0,2.099304]
[1673807765056,0.51648963,20825.0,20820.0,2.007304]
[1673807765305,0.321207,20824.0,20820.0,1.619]
[1673807765520,0.19072595,20824.0,20820.0,1.527]
[1673807766077,0.32656368,20828.0,20821.0,0.3]
[1673807766331,0.5033198,20829.0,20823.0,0.960456]
[1673807766583,0.2167143,20829.0,20823.0,1.160456]
[1673807766850,0.00555062,20829.0,20824.0,0.3]
[1673807767113,0.00555062,20829.0,20824.0,0.780214]
[1673807768131,0.19627657,20829.0,20824.0,1.24416629]
[1673807768408,0.00555062,20829.0,20826.0,0.480161]
[1673807768653,0.00555062,20829.0,20825.0,2.05805588]
[1673807768912,0.00555062,20829.0,20828.0,0.480122]
[1673807770231,0.00555062,20829.0,20828.0,0.573122]
[1673807770484,0.00555062,20829.0,20828.0,0.873122]
[1673807771058,0.00555062,20829.0,20828.0,0.988522]
[1673807771276,0.00555062,20829.0,20828.0,0.573122]
[1673807771516,0.00555062,20829.0,20828.0,0.780122]
[1673807771772,0.00555062,20829.0,20828.0,0.093]
[1673807772018,0.00555062,20829.0,20828.0,0.393]
[1673807772269,0.00555062,20829.0,20828.0,0.873122]
[1673807773019,0.00555062,20829.0,20828.0,0.093]
[1673807773020,0.19627657,20829.0,20828.0,0.093]
[1673807773275,0.12015062,20829.0,20828.0,0.093]
[1673807773526,0.23475062,20829.0,20828.0,0.093]
[1673807773786,0.23475062,20829.0,20828.0,0.09306]
[1673807773787,0.55595762,20829.0,20828.0,0.09306]
[1673807774034,1.11541056,20829.0,20828.0,0.09306]
[1673807774286,1.04165931,20829.0,20828.0,0.09306]
[1673807775060,0.56445762,20829.0,20828.0,0.09306]
[1673807775313,0.00555062,20829.0,20828.0,0.09306]
[1673807775567,0.00587062,20829.0,20828.0,0.09306]
[1673807775822,0.00587062,20829.0,20828.0,0.09571]
[1673807776324,0.00587062,20829.0,20828.0,6e-05]
[1673807776827,0.48696962,20829.0,20828.0,0.08606]
[1673807777087,0.48596962,20829.0,20828.0,6e-05]
[1673807777336,0.48596962,20829.0,20828.0,0.08606]
[1673807777337,0.00687062,20829.0,20828.0,0.08606]
[1673807777596,0.00587062,20829.0,20828.0,0.09571]
[1673807777844,0.00587062,20829.0,20828.0,0.04706]
[1673807778095,0.00587062,20829.0,20828.0,0.15563]
[1673807778607,0.00587062,20829.0,20828.0,0.04706]
[1673807778856,0.00587062,20829.0,20828.0,0.09571]
[1673807779106,0.00087062,20829.0,20828.0,0.14271]
[1673807779364,0.00087062,20829.0,20828.0,0.09571]
[1673807779611,0.00087062,20829.0,20828.0,0.14271]
[1673807779871,0.00087062,20829.0,20826.0,1.2353]
[1673807780124,0.30719657,20829.0,20828.0,0.086]
[1673807780327,0.55127762,20829.0,20826.0,1.2353]
[1673807780645,0.55127762,20829.0,20822.0,0.711117]
[1673807780646,0.1154,20828.0,20822.0,0.480317]
[1673807780911,0.19072595,20827.0,20822.0,0.480317]
[1673807781163,0.1154,20828.0,20826.0,0.086]
[1673807781947,0.1154,20828.0,20823.0,0.22291]
[1673807782198,0.1154,20828.0,20823.0,0.42291]
[1673807782442,0.1154,20828.0,20823.0,0.22291]
[1673807782701,0.1154,20828.0,20823.0,0.703147]
[1673807782702,0.30612595,20828.0,20823.0,0.703147]
[1673807782963,0.31312595,20828.0,20823.0,0.703147]
[1673807783233,0.30612595,20828.0,20823.0,0.703147]
[1673807783508,0.30712595,20828.0,20823.0,0.789147]
[1673807783811,0.001,20828.0,20824.0,0.3]
[1673807784036,0.001,20828.0,20824.0,1.260411]
[1673807784275,0.001,20828.0,20825.0,0.2]
[1673807784525,0.001,20828.0,20824.0,1.260407]
[1673807784787,0.1145,20825.0,20823.0,0.08606]
[1673807785039,0.30522595,20825.0,20823.0,6e-05]
[1673807785297,0.1145,20825.0,20824.0,0.086]
[1673807785556,0.1145,20825.0,20823.0,6e-05]
[1673807785809,0.1155,20825.0,20823.0,0.08606]
[1673807786107,0.1145,20825.0,20823.0,6e-05]
[1673807786397,0.1153,20824.0,20823.0,6e-05]
[1673807786646,1.03760869,20824.0,20823.0,6e-05]
[1673807786898,1.040622,20824.0,20823.0,0.04706]
[1673807787158,0.551907,20824.0,20823.0,0.04706]
[1673807787431,0.2307,20824.0,20823.0,0.04706]
[1673807787738,0.1154,20824.0,20823.0,0.04706]
[1673807787986,0.1154,20824.0,20823.0,6e-05]
[1673807788222,0.1154,20824.0,20823.0,0.04706]
[1673807788472,0.1154,20824.0,20823.0,6e-05]
[1673807788746,0.1154,20824.0,20823.0,0.04706]
[1673807789019,0.1154,20827.0,20823.0,0.10863]
[1673807789276,0.48097862,20829.0,20823.0,0.635868]
[1673807789524,0.00087062,20829.0,20824.0,0.3]
[1673807789794,0.00087062,20829.0,20824.0,0.780207]
[1673807789795,0.00055062,20829.0,20824.0,0.780207]
[1673807790061,0.00055062,20829.0,20825.0,0.2]
[1673807790402,0.00055062,20829.0,20824.0,0.780207]
[1673807790587,0.19162657,20829.0,20824.0,0.780207]
[1673807790821,0.001,20827.0,20824.0,0.780207]
[1673807791074,0.00090062,20829.0,20824.0,0.780207]
[1673807791327,0.00190062,20829.0,20827.0,1.555735]
[1673807791591,0.00055062,20829.0,20828.0,0.3]
[1673807791845,0.00155062,20829.0,20827.0,1.440435]
[1673807792096,0.00055062,20829.0,20827.0,0.96029]
[1673807792348,0.13100062,20829.0,20826.0,1.1516]
[1673807792603,0.32072657,20829.0,20826.0,1.1516]
[1673807792850,0.19072595,20828.0,20826.0,1.1516]
[1673807793109,0.1283,20828.0,20826.0,1.1516]
[1673807793354,0.608424,20828.0,20826.0,1.3916]
[1673807794082,0.608424,20828.0,20826.0,0.24]
[1673807794083,0.450407,20827.0,20826.0,0.24]
[1673807794345,0.930552,20827.0,20826.0,0.24]
[1673807795451,0.937552,20827.0,20826.0,0.247]
[1673807796432,0.457407,20827.0,20826.0,0.247]
[1673807796969,0.007,20827.0,20826.0,0.24706]
[1673807797219,0.00735,20827.0,20826.0,0.24706]